Cogmind - Beta 13 @@@ ROGUE MODE // 2024.05.27 @ 19:25:27 Player: JTMusky Result: Destroyed by G-34 Mercenary with Small Laser Performance ------------- Evolutions (0) 0 Regions Visited (1) 200 Robots Destroyed (5) 25 Value Destroyed (158) 158 Prototype IDs (0) 0 Alien Tech Used (0) 0 Bonus (0) 0 TOTAL SCORE: 383 Bonus ------- None Cogmind --------- Core Integrity 0/250 Matter 239/300 Energy 40/250 System Corruption 0% Temperature Cool (18) Movement Treading (160) Location -10/Materials Parts ------- > --- POWER (1) -------- Ion Engine > --- PROPULSION (2) --- Light Treads Light Treads > --- UTILITY (2) ------ Small Storage Unit Seismic Detector > --- WEAPON (2) ------- EM Pulse Gun > --- INVENTORY (8) ---- Wheel Wheel Wheel Improved Terrain Scanner Peak State ------------ > --- POWER ------------ Ion Engine > --- PROPULSION ------- Aluminum Leg Aluminum Leg > --- UTILITY ---------- Small Storage Unit Seismic Detector > --- WEAPON ----------- Assault Rifle Assault Rifle > --- INVENTORY -------- Ion Engine Light Treads Light Treads Wheel Wheel Compact Wheel Improved Terrain Scanner EM Pulse Gun [Rating: 8] Favorites ----------- Power Ion Engine Engine Ion Engine Propulsion Aluminum Leg Treads Light Treads Leg Aluminum Leg Utility Small Storage Unit Device Seismic Detector Storage Small Storage Unit Weapon Assault Rifle Energy Gun EM Pulse Gun Ballistic Gun Assault Rifle Launcher Grenade Launcher Build | -11 -10 ------- Run | Yrd Mat Slots Evolved . | . . Power . | . . Propulsion . | . . Utility . | . . Weapon . | . . Parts Attached 14 | 7 7 Power 2 | 1 1 Engine 2 | 1 1 Core . | . . Reactor . | . . Propulsion 4 | 2 2 Treads 2 | . 2 Leg 2 | 2 . Wheel . | . . Hover . | . . Flight . | . . Utility 2 | 2 . Device 1 | 1 . Storage 1 | 1 . Processor . | . . Hackware . | . . Protection . | . . Artifact . | . . Weapon 6 | 2 4 Energy Gun 3 | . 3 Energy Cannon . | . . Ballistic Gun 2 | 2 . Ballistic Cannon . | . . Launcher 1 | . 1 Special Weapon . | . . Impact Weapon . | . . Slashing Weapon . | . . Piercing Weapon . | . . Special Melee Weapon . | . . Unidentified Prototypes . | . . Parts Lost 7 | . 7 Power 1 | . 1 Propulsion 2 | . 2 Utility . | . . Weapon 4 | . 4 Highest Loss Streak 5 | . 5 To Critical Strikes . | . . Average Slot Usage (%) 95 | . 95 Engine 14 | . 14 Leg 26 | . 26 Device 14 | . 14 Storage 14 | . 14 Energy Gun 1 | . 1 Ballistic Gun 12 | . 12 Launcher 10 | . 10 Naked Turns . | . . Heaviest Build 16 | 15 16 Greatest Support 20 | 20 20 Greatest Overweight (x) 2 | 2 . Average Overweight (x) . | . . Largest Inventory Capacity 8 | 8 8 Average Capacity 7 | 7 8 Most Carried 8 | 8 8 Average Carried 7 | 5 7 Final Capacity 8 | 8 8 Final Carried 8 | 8 4 Class Distribution -------------------- 100% | Mutant Dominant Class ---------------- Mutant | -10/Materials Resources | -11 -10 ----------- Run | Yrd Mat Matter Collected 326 | 284 42 Remotely . | . . Salvage Created 177 | 28 149 Parts 12 | 4 8 Haulers Intercepted . | . . Recyclers Shooed . | . . Parts Field Recycled . | . . Retrieved Matter . | . . Parts Self-Destructed . | . . Prevented . | . . Kills | -11 -10 ------- Run | Yrd Mat Combat Hostiles Destroyed 3 | . 3 Guns 2 | . 2 Classes Destroyed 3 | 1 2 Tunneler 1 | 1 . Operator 1 | . 1 Grunt 3 | . 3 Best Kill Streak 2 | 1 2 Combat Bots Only 2 | . 2 Max Kills in Single Turn 1 | 1 1 Gunslinging . | . . Exploded . | . . Melee . | . . Uniques/NPCs Destroyed . | . . Combat | -11 -10 -------- Run | Yrd Mat Hostile Shots Fired 71 | . 71 Missed 20 | . 20 Damage Taken 844 | . 844 Core 259 | . 259 Absorbed by Shields . | . . Core Remaining (%) 100 | 100 . Volleys Fired 30 | 5 25 Largest 2 | 2 2 Hottest 40 | 40 40 Shots Fired 36 | 10 26 Gun 35 | 10 25 Cannon . | . . Launcher 1 | . 1 Special . | . . Kinetic 24 | 10 14 Thermal . | . . Explosive 1 | . 1 Electromagnetic 11 | . 11 Robot Hit Streak 5 | 2 5 Robot Miss Streak 3 | 3 3 Penetration Max . | . . Secondary Targets . | . . Shots Hit Robots 18 | 4 14 Core Hits 10 | 2 8 Critical Kills . | . . Critical Parts Destroyed . | . . Critical Strikes . | . . Melee Attacks . | . . Impact . | . . Slashing . | . . Piercing . | . . Sneak Attacks . | . . Combat Hostiles . | . . Follow-up Attacks . | . . Damage Inflicted 347 | 54 293 Guns 246 | 54 192 Cannons . | . . Explosions 101 | . 101 Melee . | . . Ramming . | . . Kinetic 116 | 54 62 Thermal 20 | . 20 Explosive 81 | . 81 Electromagnetic 130 | . 130 Impact . | . . Slashing . | . . Piercing . | . . Highest Corruption . | . . Average Corruption . | . . Corruption Purged . | . . Corruption Blocked . | . . Overload Shots . | . . Overflow Damage 32 | . 32 Projectiles . | . . Explosions 32 | . 32 Melee . | . . Knockbacks . | . . Impact . | . . Kinetic . | . . Secondary . | . . Self-Inflicted Damage 235 | . 235 Shots 3 | . 3 Rammed . | . . Targets Rammed . | . . Kicked . | . . Crushed . | . . Highest Temperature 57 | . 57 Average Temperature 20 | . 20 Received Heat Transfer 342 | . 342 Siege Activations . | . . Robots Corrupted 1 | . 1 Combat Hostiles 1 | . 1 Parts Fried . | . . Impact Corruptions . | . . Robots Melted . | . . Combat Hostiles . | . . Parts Melted . | . . Heat Transferred 50 | . 50 Parts Sabotaged . | . . Parts Stolen . | . . Parts Stripped . | . . Power Chain Reactions . | . . Alert | -11 -10 ------- Run | Yrd Mat Peak Influence 112 | 5 112 Initial 3 | . 3 Average 21 | 1 26 Maximum Alert Level . | . . Low Security (%) 100 | 100 100 Level 1 . | . . Level 2 . | . . Level 3 . | . . Level 4 . | . . Level 5 . | . . High Security . | . . Max Security . | . . Squads Dispatched 2 | . 2 Investigation . | . . Extermination . | . . Reinforcement 2 | . 2 Assault . | . . Garrison . | . . Intercept . | . . Searches Triggered . | . . Construction Impeded . | . . Haulers Reinforced . | . . Active Scanning Responses . | . . Cargo Convoy Interrupts . | . . Stealth | -11 -10 --------- Run | Yrd Mat Distress Signals . | . . Communications Jammed . | . . Distress Signals . | . . Times Spotted 9 | . 9 Peak Tracking Total 4 | . 4 Tactical Retreats 1 | . 1 Traps | -11 -10 ------- Run | Yrd Mat Traps Triggered . | . . Indirectly . | . . Trap Hack Attempts . | . . Triggered . | . . Disarmed . | . . Reprogrammed . | . . Reused . | . . Traps Extracted . | . . Installed . | . . Triggered . | . . Machines | -11 -10 ---------- Run | Yrd Mat Machines Disabled 2 | . 2 Max in Single Turn 2 | . 2 Machines Repaired . | . . Machines Dismantled . | . . Machines Sabotaged . | . . Overloaded Fab Kills . | . . Hacking | -11 -10 --------- Run | Yrd Mat Machines Accessed 1 | . 1 Terminals 1 | . 1 Fabricators . | . . Repair Stations . | . . Recycling Units . | . . Scanalyzers . | . . Garrison Access . | . . Total Hacks 2 | . 2 Successful 1 | . 1 Failed 1 | . 1 Catastrophic . | . . Database Lockouts . | . . Manual . | . . Terminals 2 | . 2 Fabricators . | . . Repair Stations . | . . Recycling Units . | . . Scanalyzers . | . . Garrison Access . | . . Terminal Hacks 1 | . 1 Security Status 1 | . 1 Fabricator Hacks . | . . Repair Station Hacks . | . . Recycling Unit Hacks . | . . Scanalyzer . | . . Garrison Access Hacks . | . . Unauthorized Hacks . | . . Terminals . | . . Fabricators . | . . Repair Stations . | . . Recycling Units . | . . Scanalyzers . | . . Garrison Access . | . . Data Cores Recovered . | . . Used . | . . Hacking Detections . | . . Full Trace Events . | . . Feedback Events . | . . Feedback Blocked . | . . Robot Schematics Acquired . | . . Robots Built . | . . Authchips . | . . Time . | . . Total Robot Build Rating . | . . Part Schematics Acquired . | . . Parts Built . | . . Authchips . | . . Time . | . . Total Part Build Rating . | . . Parts Repaired . | . . Time . | . . Parts Recycled . | . . Recycled Matter . | . . Retrieved Matter . | . . Retrieved Components . | . . Parts Scanalyzed . | . . Part Schematics Acquired . | . . Parts Damaged . | . . Bothacking | -11 -10 ------------ Run | Yrd Mat Used RIF Installer . | . . Robots Hacked . | . . Non-combat . | . . Combat . | . . Robot Hacks Applied . | . . Relay Couplers Released . | . . Fabnet Peak Effective % . | . . Robots Rewired . | . . Allies Hacked . | . . Hacks Repelled . | . . Allies | -11 -10 -------- Run | Yrd Mat Total Allies . | . . Largest Group . | . . Highest-Rated Group . | . . Highest-Rated Ally . | . . Total Orders . | . . Ally Attacks . | . . Total Damage . | . . Kills . | . . Allies Corrupted . | . . Allies Melted . | . . Intel | -11 -10 ------- Run | Yrd Mat Robot Analysis Total . | . . Derelict Logs Recovered . | . . Drone Launches . | . . Drone Recoveries . | . . Exploration | -11 -10 ------------- Run | Yrd Mat Turns Passed 524 | 112 412 Spaces Moved 241 | 59 182 Core 18 | 18 . Treads . | . . Legs 223 | 41 182 Wheels . | . . Hover . | . . Flight . | . . Fastest Speed 50 | 50 120 Average Speed 121 | 124 120 Slowest Speed 150 | 150 120 Overloaded Moves . | . . Propulsion Burnouts . | . . Robots Hopped . | . . Cave-ins Triggered . | . . Exploration Rate (%) 18 | 4 32 Regions Visited 1 Branch Regions . Pre-discovered Areas . | . . Known Exits Taken . | . . Unknown Exits Taken 1 | 1 . Scrap Searched . | . . Spaces Dug . | . . Terrain Destroyed 42 | . 42 Melee . | . . Projectile . | . . AOE 42 | . 42 Terrain Rammed . | . . Walls Destroyed . | . . Machines Disabled . | . . Actions | -11 -10 --------- Run | Yrd Mat Total 435 | 86 349 Wait 136 | 2 134 Move 240 | 58 182 Hop . | . . Pick Up 13 | 13 . Fast Attach 6 | 3 3 Attach 8 | 4 4 Detach . | . . Swap . | . . Drop 2 | 1 1 Fire 30 | 5 25 Melee . | . . Ram . | . . Kick . | . . Crush . | . . Escape Stasis . | . . Rewire . | . . Trap . | . . Miscellaneous . | . . Route ------- -11/Scrapyard -10/Materials History --------- Turn | Location | Event 2 | -11/Scrapyard | Met Revision 17 21 | -11/Scrapyard | Discovered new exit (range 15) 113 | -11/Scrapyard | Entered Materials 304 | -10/Materials | Build established: Mutant 455 | -10/Materials | Core integrity fell below 50% 490 | -10/Materials | Core integrity fell below 20% 525 | -10/Materials | Destroyed by G-34 Mercenary with Small Laser Last Messages --------------- 00454_ Destroyed Aluminum Leg. 00454_ Grenade Launcher destroyed. 00454_ Destroyed Grenade Launcher. 00460_ The unstable cave ceiling collapses. 00462_ Assault Rifle destroyed. 00470_ Acquired EM Pulse Gun. 00472_ G-34 Mercenary destroyed. 00484_ K-01 Serf collects debris. 00484_ Acquired 23 matter. 00492_ K-01 Serf collects debris. 00494_ EM Pulse Gun destroyed. 00495_ K-01 Serf collects debris. 00498_ The unstable cave ceiling collapses. 00508_ Aluminum Leg destroyed. 00508_ Acquired EM Pulse Gun. 00512_ Aluminum Leg destroyed. 00512_ Ion Engine destroyed. 00514_ G-34 Mercenary destroyed. 00519_ EM Pulse Gun destroyed. 00523_ G-47 Trooper system terminally corrupted. Map ----- +----------------------------------------------------+ | | | | | | | | | | | | | | | | | | | | | | | | | ????????????????###?##???????????? | | ??????????????### ## ###????????? | | ??????????????# ##???????? | | ??????????????# ##??????? | | ?????????????## #??????? | | ?????????????# ###?????? | | ?????????????# #?????? | | ?????????????## #?????? | | ??????????????# ####??? | | ??????????????# #??? | | ??????????????# ""#??? | | ??????????????### [ # T"#??? | | ??????############ ""#??? | | ??????# @ g # # ## #??? | | ??????# ![+ #### ! #??? | | ??????#! =%[# #??# #??? | | ??????# ** """ # #??# #??? | | ??????# ** g """ # #??# #?? | | ??????# ** """ # ######/### | | ??????# + | | ??????#######+##### ### | | ??????????????????# #?# | | ??????????????????# #?# ###### | | ????????????????? #?# #?????## | | ????????????????### #?# ###????? | | ??????????????????# #?# T#????? | | ?????????????????## ### ""#????? | | ?????????????????# ## ###????? | | ?????????????????# ## #??????? | | ?????????????????# ## #??????? | | ?????????????????# ## #??????? | | ?????????????????# ## #??????? | | ??????????######### #?# #??????? | | ??????????# # ###+#######? | | ??????????# + / #? | | ??????????# # # #? | | ??????????######### # #? | | ????????########### # #? | +----------------------------------------------------+ Best States ------------- Heat Dissipation 25 Energy Generation 10 Energy Capacity 250 Matter Stores 284 Matter Capacity 300 Sight Range 16 Terrain Scan Density 10 Evasion (%) 55 Item Schematics ----------------- None Robot Schematics ------------------ None Fabricated ------------ Nothing Alien Tech Used ----------------- None Achievements -------------- None Challenges ------------ None Game ------ Seed SpacefoldChargeInterpreter Manual? 0 Play Time 00:14:34 Cumulative 26.9 hours Start 2024.05.27 @ 19:03:35 End 2024.05.27 @ 19:25:27 Sessions 1 Manual Loads 0 Difficulty Rogue Special Mode None Game No. 37 Rogue 37 Adventurer 0 Explorer 0 Win Type - Total 0 Types 0/0/0/0/0/0/0/0/0 Lore% 18 Gallery% 15 Achievement% 16 Wizard Run 0 Options --------- Layout 2 ASCII 1 Keyboard 1 Movement Vi Keybinds 0 Fullscreen 2 Font 40/SmallcapsGlow Map View 50x44 Zoom Use 0% Tactical HUD 1 Map Filters NONE Filters NONE Steam 0 RUN: 89887e25-ff0f-44c7-85d5-c2189cf4eaa2